bitfinex/quotes_SOLUSD_20250811
["timestamp","ask_amount","ask_price","bid_price","bid_amount"]
[1754924296933,0.72,179.0,178.99,45.84690429]
[1754924297150,0.72,179.0,178.99,55.38988836]
[1754924297527,0.03,179.0,178.99,55.38988836]
[1754924297730,0.03,179.0,178.99,45.84690429]
[1754924297927,0.03,179.0,178.99,55.38988836]
[1754924298339,0.72,179.0,178.99,46.22003714]
[1754924298649,0.03,179.0,178.99,51.80694143]
[1754924298850,0.03,179.0,178.99,46.22003714]
[1754924299057,0.72,179.0,178.99,46.22003714]
[1754924299353,0.03,179.0,178.99,51.80694143]
[1754924300223,0.03,179.0,178.99,52.50694143]
[1754924300828,0.03,179.0,178.99,51.80694143]
[1754924301035,0.03,179.0,178.99,52.50694143]
[1754924302156,0.03,179.0,178.99,51.80694143]
[1754924303535,0.03,179.0,178.99,11.54694143]
[1754924303753,0.03,179.0,178.99,51.78694143]
[1754924304133,0.03,179.0,178.99,52.48694143]
[1754924304355,0.03,179.0,178.99,58.44697857]
[1754924304766,0.03,179.0,178.99,51.78694143]
[1754924305060,0.72,179.0,178.99,11.54694143]
[1754924305263,0.72,179.0,178.99,51.78694143]
[1754924305565,0.72,179.0,178.99,46.20003714]
[1754924305775,0.72,179.0,178.99,40.24]
[1754924306262,0.72,179.0,178.99,46.20003714]
[1754924306643,0.72,179.0,178.99,40.24]
[1754924308365,6.30659217,179.0,178.96,5.96003714]
[1754924308564,140.0,178.99,178.97,40.24]
[1754924308740,0.72,178.98,178.97,40.24]
[1754924310366,0.72,178.98,178.96,5.96003714]
[1754924310367,0.72,178.98,178.95,6.02003714]
[1754924310666,0.72,178.98,178.96,40.22]
[1754924310845,11.54701498,178.99,178.96,40.22]
[1754924311162,0.72,178.97,178.96,40.22]
[1754924311344,0.72,178.97,178.95,46.24003714]
[1754924311667,0.72,178.96,178.95,46.24003714]
[1754924313058,0.72,178.96,178.95,40.28]
[1754924313871,0.03,179.0,178.95,46.24003714]
[1754924313872,0.72,178.99,178.95,46.24003714]
[1754924314068,0.72,178.99,178.95,40.28]
[1754924314274,0.72,178.99,178.96,5.96003714]
[1754924314461,0.72,178.98,178.95,46.24003714]
[1754924314662,11.57671151,179.0,178.95,46.24003714]
[1754924314855,0.72,178.98,178.95,46.24003714]
[1754924315050,140.0,178.97,178.95,46.24003714]
[1754924315853,0.72,178.96,178.95,40.28]
[1754924316252,0.72,178.96,178.95,0.06]
[1754924316874,6.68003714,178.96,178.95,0.06]
[1754924317177,12.26787799,178.96,178.95,0.06]
[1754924318684,27.37409356,178.96,178.95,0.06]
[1754924319477,21.41405642,178.96,178.95,0.06]
[1754924319681,27.37409356,178.96,178.95,0.06]
[1754924319979,57.37409356,178.96,178.95,0.06]
[1754924320477,27.37409356,178.96,178.95,0.06]
[1754924321964,67.57409356,178.96,178.95,0.06]
[1754924323487,97.57409356,178.96,178.95,0.06]
[1754924323783,67.57409356,178.96,178.95,0.06]
[1754924324771,97.57409356,178.96,178.95,0.06]
[1754924329691,85.30621557,178.96,178.95,0.06]
[1754924329894,30.0,178.96,178.95,0.06]
[1754924330085,42.26787799,178.96,178.95,0.06]
[1754924330469,36.30784085,178.96,178.95,0.06]
[1754924330679,42.26787799,178.96,178.95,0.06]
[1754924331089,57.37409356,178.96,178.95,0.06]
[1754924331395,27.37409356,178.96,178.95,0.06]
[1754924333497,30.28730632,178.96,178.95,0.06]
[1754924334675,60.28730632,178.96,178.95,0.06]
[1754924335782,166.76625271,178.95,178.94,1e-08]
[1754924336091,237.66625271,178.95,178.94,1e-08]
[1754924337289,243.25440582,178.95,178.94,1e-08]
[1754924337679,236.57436868,178.95,178.94,1e-08]
[1754924337886,196.39436868,178.95,178.94,1e-08]
[1754924338071,236.57436868,178.95,178.94,1e-08]
[1754924338276,242.53440582,178.95,178.94,1e-08]
[1754924338771,236.57436868,178.95,178.94,1e-08]
[1754924338976,242.53440582,178.95,178.94,1e-08]
[1754924339877,236.57436868,178.95,178.94,1e-08]
[1754924341596,206.57436868,178.95,178.94,1e-08]
[1754924343015,212.53440582,178.95,178.94,1e-08]
[1754924344100,206.57436868,178.95,178.94,1e-08]
[1754924344305,212.53440582,178.95,178.94,1e-08]
[1754924345099,213.21440582,178.95,178.94,1e-08]
[1754924345304,216.12765601,178.95,178.94,1e-08]
[1754924345525,246.12765601,178.95,178.94,1e-08]
[1754924347986,100.42765601,178.95,178.94,1e-08]
[1754924349217,105.10489196,178.95,178.94,1e-08]
[1754924349803,100.42765601,178.95,178.94,1e-08]
[1754924350406,105.10489196,178.95,178.94,1e-08]
[1754924351501,100.38765601,178.95,178.94,1e-08]
[1754924351808,126.38765601,178.95,178.94,1e-08]
[1754924352121,161.06625271,178.94,178.93,1e-08]
[1754924352292,196.43756073,178.94,178.93,1e-08]
[1754924352497,62.02602613,178.94,178.93,1e-08]
[1754924352696,50.69468097,178.94,178.93,1e-08]
[1754924352919,90.83468097,178.94,178.93,1e-08]
[1754924353122,96.79471811,178.94,178.93,1e-08]
[1754924353420,90.83468097,178.94,178.93,0.71000001]
[1754924353722,75.7284654,178.94,178.93,0.71000001]
[1754924354108,30.0,178.94,178.93,0.71000001]
[1754924356228,30.0,178.94,178.93,6.67003715]
[1754924356616,0.03,178.95,178.93,6.67003715]
[1754924356809,0.03,178.95,178.94,6.67003714]
[1754924358631,0.03,178.95,178.94,12.25850254]
[1754924361913,0.03,178.95,178.94,6.67003714]
[1754924362606,0.03,178.95,178.94,12.25850254]
[1754924363707,0.03,178.95,178.94,6.67003714]
[1754924364510,0.03,178.95,178.93,1e-08]
[1754924364922,0.03,178.95,178.93,5.96003715]
[1754924365340,0.03,178.95,178.94,6.67003714]
[1754924365860,0.03,178.95,178.94,12.25850254]
[1754924367325,0.03,178.95,178.94,14.49557654]
[1754924370314,0.03,178.95,178.94,54.57557654]
[1754924371809,0.03,178.95,178.94,14.49557654]
[1754924375634,0.03,178.95,178.94,13.78557654]
[1754924376923,0.03,178.95,178.94,2.237074]
[1754924376924,0.69,178.95,178.94,2.237074]
[1754924377139,0.69,178.95,178.93,5.96003715]
[1754924377339,0.66,178.94,178.93,5.96003715]
[1754924377846,0.66,178.94,178.93,1e-08]
[1754924379560,6.2484654,178.94,178.93,1e-08]
[1754924379745,12.20850254,178.94,178.93,1e-08]
[1754924381457,6.2484654,178.94,178.93,1e-08]
[1754924381756,12.20850254,178.94,178.93,1e-08]
[1754924384143,27.31471811,178.94,178.93,1e-08]
[1754924385230,21.35468097,178.94,178.93,1e-08]
[1754924385438,6.2484654,178.94,178.93,1e-08]
[1754924385839,12.20850254,178.94,178.93,1e-08]
[1754924386050,42.20850254,178.94,178.93,1e-08]
[1754924386253,12.20850254,178.94,178.93,1e-08]
[1754924386555,52.24850254,178.94,178.93,1e-08]
[1754924387128,46.2884654,178.94,178.93,1e-08]
[1754924387331,52.24850254,178.94,178.93,1e-08]
[1754924387526,82.24850254,178.94,178.93,1e-08]
[1754924388562,97.35471811,178.94,178.93,1e-08]
[1754924388858,67.35471811,178.94,178.93,1e-08]
[1754924389056,12.20850254,178.94,178.93,1e-08]
[1754924391961,57.31471811,178.94,178.93,1e-08]
[1754924392366,51.35468097,178.94,178.93,1e-08]
[1754924392665,57.31471811,178.94,178.93,1e-08]
[1754924394548,62.00829988,178.94,178.93,1e-08]
[1754924395150,102.02829988,178.94,178.93,1e-08]
[1754924395556,41.10621557,178.92,178.91,0.06]
[1754924395743,117.08625271,178.92,178.91,0.06]
[1754924396559,122.6753428,178.92,178.91,0.06]
[1754924399048,92.6753428,178.92,178.91,0.06]
[1754924400343,60.71530566,178.92,178.91,0.06]
[1754924400767,66.6753428,178.92,178.91,0.06]
[1754924401969,96.6753428,178.92,178.91,0.06]
[1754924402171,99.58922672,178.92,178.91,0.06]
[1754924402748,96.6753428,178.92,178.91,0.06]
[1754924404355,90.71530566,178.92,178.91,0.06]
[1754924404563,56.6553428,178.92,178.91,0.06]
[1754924404741,66.6553428,178.92,178.91,0.06]
[1754924407665,67.3553428,178.92,178.91,0.06]
[1754924407973,97.3553428,178.92,178.91,9.3694]
[1754924408546,96.6553428,178.92,178.91,9.3694]
[1754924409262,97.3553428,178.92,178.91,9.3694]
[1754924412166,91.39530566,178.92,178.91,9.3694]
[1754924412350,97.3553428,178.92,178.91,9.3694]
[1754924412752,100.26928698,178.92,178.91,9.3694]
[1754924413963,94.30924984,178.92,178.91,9.3694]
[1754924414163,100.26928698,178.92,178.91,9.3694]
[1754924416981,94.30924984,178.92,178.91,9.3694]
[1754924417183,100.26928698,178.92,178.91,9.3694]
[1754924418478,100.26928698,178.92,178.89,0.06]
[1754924418479,15.10621557,178.91,178.89,1e-08]
[1754924418676,41.10621557,178.88,178.87,1e-08]
[1754924418980,92.6365926,178.88,178.87,1e-08]
[1754924419281,93.3365926,178.88,178.87,1e-08]
[1754924419656,123.3365926,178.88,178.87,1e-08]
[1754924419954,125.5759206,178.88,178.87,1e-08]
[1754924420370,15.10621557,178.87,178.74,20.92411516]
[1754924420571,15.10621557,178.82,178.75,0.69]
[1754924420905,5.59377971,178.77,178.75,0.69]
[1754924421069,11.55381685,178.77,178.75,0.69]
[1754924421390,11.55381685,178.77,178.76,0.69]
[1754924421965,5.59377971,178.77,178.74,0.69]
[1754924422165,140.0,178.76,178.75,0.69]
[1754924422867,140.0,178.76,178.75,6.71003714]
[1754924423268,140.0,178.76,178.75,0.75]
[1754924425582,145.59409263,178.76,178.75,0.06]
[1754924425789,5.59409263,178.76,178.75,0.06]
[1754924425975,45.57409263,178.76,178.75,0.06]
[1754924426880,67.34034534,178.76,178.75,0.06]
[1754924427079,60.6803082,178.76,178.75,0.06]
[1754924427698,67.34034534,178.76,178.75,0.06]
[1754924428501,66.64034534,178.76,178.75,0.06]
[1754924429394,60.6803082,178.76,178.75,0.06]
[1754924429783,55.08621557,178.76,178.75,0.78]
[1754924429987,60.6803082,178.76,178.75,0.06]
[1754924430306,67.34034534,178.76,178.75,0.06]
[1754924432174,101.49150291,178.76,178.75,0.06]
[1754924432984,104.40833554,178.76,178.75,0.06]
[1754924434879,63.72833554,178.76,178.75,0.06]
[1754924435191,103.70833554,178.76,178.75,0.06]
[1754924435370,104.40833554,178.76,178.75,0.06]
[1754924435576,104.38833554,178.76,178.75,0.06]
[1754924436179,103.68833554,178.76,178.75,0.06]
[1754924436675,104.38833554,178.76,178.75,0.06]
[1754924436980,63.72833554,178.76,178.75,0.06]
[1754924437180,101.47150291,178.76,178.75,0.06]
[1754924437880,104.38801249,178.76,178.75,0.06]
[1754924438399,106.62884649,178.76,178.75,0.06]
[1754924438775,76.62884649,178.76,178.75,0.06]
[1754924439691,106.62884649,178.76,178.75,0.06]
[1754924440488,105.92884649,178.76,178.75,0.06]
[1754924440688,52.17388272,178.76,178.75,0.06]
[1754924440880,85.06621557,178.76,178.75,6.74003714]
[1754924441075,96.62034534,178.76,178.75,0.06]
[1754924441281,67.32034534,178.76,178.75,0.06]
[1754924441476,60.6603082,178.76,178.75,0.78]
[1754924441687,90.6603082,178.76,178.75,0.78]
[1754924442423,30.0,178.76,178.75,0.78]
[1754924442710,0.03,178.89,178.75,38.70007428]
[1754924442873,0.03,178.89,178.87,5.96003714]
[1754924443077,4.16981647,178.89,178.88,5.96003714]
[1754924443273,0.03,178.89,178.88,5.96003714]
[1754924443497,0.03,178.89,178.81,40.54042035]
[1754924443710,0.03,178.89,178.88,5.96003714]
[1754924444891,0.03,178.89,178.88,11.92007428]
[1754924445203,0.03,178.89,178.88,8.19786214]
[1754924445388,0.03,178.89,178.88,14.15789928]
[1754924445589,0.03,178.91,178.9,37.92007428]
[1754924445908,0.03,178.94,178.93,26.0]
[1754924446198,0.03,178.94,178.93,35.53812365]
[1754924446703,0.03,178.94,178.93,36.09700142]
[1754924447199,0.03,178.94,178.93,35.53812365]
[1754924447981,0.03,178.94,178.93,41.12690138]
[1754924448814,0.03,178.94,178.93,35.53812365]
[1754924449897,0.03,178.94,178.92,35.53812365]
[1754924450101,0.03,178.94,178.91,9.53812365]
[1754924450307,9.53812365,178.93,178.88,9.53812365]
[1754924450613,0.7,178.93,178.89,9.53812365]
[1754924450814,0.7,178.93,178.82,13.98026598]
[1754924450815,9.53812365,178.93,178.84,5.59159024]
[1754924451110,9.53812365,178.91,178.85,9.53812365]
[1754924451315,10.23812365,178.92,178.87,9.53812365]
[1754924451486,0.03,178.94,178.91,9.53812365]
[1754924451683,0.03,178.94,178.93,9.53812365]
[1754924454017,10.26812365,178.94,178.89,35.53812365]
[1754924454186,0.7,178.93,178.89,35.53812365]
[1754924454723,0.7,178.92,178.89,26.0]
[1754924455014,0.7,178.91,178.87,9.53812365]
[1754924455188,10.23812365,178.91,178.86,9.53812365]
[1754924455388,0.7,178.9,178.86,26.0]
[1754924455728,150.23812365,178.89,178.84,9.53812365]
[1754924455914,15.8285104,178.88,178.83,49.43812365]
[1754924456116,0.7,178.87,178.83,39.9]
[1754924456317,15.1285104,178.88,178.83,49.43812365]
[1754924456507,15.8285104,178.88,178.83,49.43812365]
[1754924456905,6.28999077,178.9,178.84,9.53812365]
[1754924457108,9.53812365,178.89,178.84,9.53812365]
[1754924457304,6.28999077,178.9,178.83,49.43812365]
[1754924457305,9.53812365,178.87,178.83,49.43812365]
[1754924457514,9.53812365,178.87,178.83,26.0]
[1754924457711,9.53812365,178.88,178.83,35.53812365]
[1754924458037,5.58999077,178.9,178.87,9.53812365]
[1754924458197,5.58943254,178.91,178.83,31.59190292]
[1754924458398,5.58943254,178.91,178.87,9.53812365]
[1754924458708,9.53812365,178.89,178.84,9.53812365]
[1754924458903,9.53812365,178.88,178.83,35.53812365]
[1754924459127,10.23812365,178.87,178.82,9.53812365]
[1754924459494,20.69564811,178.91,178.81,5.59231533]
[1754924459495,140.0,178.85,178.84,9.53812365]
[1754924460510,140.0,178.85,178.84,15.12971389]
[1754924460716,140.0,178.85,178.83,5.59183342]
[1754924460921,140.0,178.85,178.82,35.59812365]
[1754924461091,140.7,178.85,178.82,26.06]
[1754924461417,140.0,178.85,178.84,9.53812365]
[1754924461927,140.0,178.85,178.83,9.53812365]
[1754924462123,140.0,178.85,178.84,9.53812365]
[1754924462324,140.0,178.85,178.84,35.53812365]
[1754924464535,140.0,178.85,178.84,41.12971389]
[1754924466846,140.0,178.85,178.84,35.59812365]
[1754924467126,140.7,178.85,178.84,0.06]
[1754924467311,140.7,178.85,178.84,9.59812365]
[1754924467823,140.0,178.85,178.84,9.59812365]
[1754924468521,140.7,178.85,178.84,0.06]
[1754924469038,186.1712776,178.85,178.84,0.06]
[1754924469220,70.81561682,178.85,178.84,0.06]
[1754924470049,61.27749317,178.85,178.84,0.06]
[1754924471009,55.68621557,178.85,178.84,0.06]
[1754924471537,61.27749317,178.85,178.84,0.06]
[1754924472427,70.81561682,178.85,178.84,0.06]
[1754924474037,40.58,178.85,178.84,0.06]
[1754924474230,55.70940125,178.85,178.84,0.06]
[1754924474636,70.81561682,178.85,178.84,0.06]
[1754924474821,24.64433922,178.83,178.82,0.06]
[1754924475021,64.52433922,178.83,178.82,0.06]
[1754924475334,65.22433922,178.83,178.82,0.06]
[1754924475945,70.81624214,178.83,178.82,0.06]
[1754924477342,61.27811849,178.83,178.82,0.06]
[1754924477545,70.81624214,178.83,178.82,0.06]
[1754924478549,21.39811849,178.83,178.82,0.06]
[1754924478848,61.27811849,178.83,178.82,0.06]
[1754924479551,55.68621557,178.83,178.82,0.06]
[1754924480055,0.7,178.85,178.82,9.59812365]
[1754924480335,39.88,178.85,178.84,9.53812365]
[1754924480542,2.91460958,178.87,178.84,9.53812365]
[1754924480743,54.98621557,178.87,178.85,9.53812365]
[1754924480938,39.88,178.87,178.85,9.53812365]
[1754924481338,0.7,178.87,178.85,9.53812365]
[1754924481869,45.5003466,178.88,178.85,9.53812365]
[1754924482078,0.7,178.86,178.85,9.53812365]
[1754924482358,5.5907235,178.87,178.85,9.53812365]
[1754924482960,0.7,178.86,178.85,9.53812365]
[1754924483462,0.7,178.86,178.84,9.53812365]
[1754924483765,0.7,178.86,178.85,9.53812365]
[1754924484131,5.5907235,178.87,178.85,9.53812365]
[1754924484766,5.5907235,178.87,178.83,9.53812365]
[1754924484954,9.53812365,178.84,178.82,0.06]
[1754924485140,24.64433922,178.85,178.82,0.06]
[1754924485345,0.7,178.83,178.82,0.06]
[1754924486339,6.29190292,178.83,178.82,0.06]
[1754924486537,10.45203103,178.83,178.82,0.06]
[1754924486952,6.29190292,178.83,178.82,0.06]
[1754924487273,10.45203103,178.83,178.82,0.06]
[1754924488546,35.09637025,178.83,178.82,0.06]
[1754924488747,25.5582466,178.83,178.82,0.06]
[1754924489685,4.16012811,178.83,178.82,0.06]
[1754924489852,44.04012811,178.83,178.82,0.06]
[1754924490170,151.29166538,178.84,178.82,9.59812365]
[1754924490383,0.03,178.86,178.83,9.53812365]
[1754924490554,4.19100738,178.86,178.84,9.53812365]
[1754924490951,0.67,178.85,178.83,9.53812365]
[1754924491569,0.03,178.86,178.83,9.53812365]
[1754924491777,4.19272696,178.86,178.83,9.53812365]
[1754924491977,55.65621557,178.85,178.82,0.06]
[1754924492165,4.16272696,178.84,178.82,0.06]
[1754924492486,5.59190292,178.83,178.82,0.06]
[1754924492656,9.75462988,178.83,178.82,0.06]
[1754924492858,10.42462988,178.83,178.82,0.06]
[1754924493083,50.30462988,178.83,178.82,0.06]
[1754924493649,49.63462988,178.83,178.82,0.06]
[1754924494480,44.04272696,178.83,178.82,9.59812365]
[1754924494683,4.16272696,178.83,178.82,9.59812365]
[1754924494873,60.58726588,178.86,178.82,9.59812365]
[1754924495078,4.83847013,178.85,178.82,9.59812365]
[1754924495383,4.16847013,178.84,178.82,0.06]
[1754924495577,4.83847013,178.84,178.82,9.59812365]
[1754924495872,0.67,178.84,178.82,9.59812365]
[1754924496074,61.25726588,178.86,178.82,9.59812365]
[1754924496279,4.170084,178.85,178.83,9.53812365]
[1754924496783,46.15106447,178.86,178.83,9.53812365]
[1754924496965,4.17012332,178.85,178.83,9.53812365]
[1754924497369,0.67,178.85,178.82,0.06]
[1754924497564,54.24049607,178.84,178.82,0.06]
[1754924497774,4.17276549,178.83,178.82,0.06]
[1754924497977,4.84276549,178.83,178.82,0.06]
[1754924498177,29.48710471,178.83,178.82,0.06]
[1754924498485,35.07900763,178.83,178.82,0.06]
[1754924499276,19.94898106,178.83,178.82,0.06]
[1754924499479,25.54088398,178.83,178.82,0.06]
[1754924499679,49.62466841,178.83,178.82,0.06]
[1754924500083,65.40088398,178.83,178.82,0.06]
[1754924500285,74.93900763,178.83,178.82,0.06]
[1754924501377,77.85428731,178.83,178.82,0.06]
[1754924501675,82.55381897,178.83,178.82,0.06]
[1754924502490,73.01569532,178.83,178.82,0.06]
[1754924502703,9.76466841,178.83,178.82,0.06]
[1754924502988,5.5916792,178.84,178.82,9.59812365]
[1754924503170,4.17661388,178.83,178.82,0.06]
[1754924503362,4.84661388,178.83,178.82,0.06]
[1754924503788,19.95282945,178.83,178.82,0.06]
[1754924503984,34.19048476,178.83,178.82,0.06]
[1754924504183,29.4909531,178.83,178.82,0.06]
[1754924504569,39.78280093,178.83,178.82,0.06]
[1754924505195,35.08285602,178.83,178.82,0.06]
[1754924505481,39.78241407,178.83,178.82,0.06]
[1754924506192,35.08285602,178.83,178.82,0.06]
[1754924506772,39.78227372,178.83,178.82,0.06]
[1754924506977,35.08285602,178.83,178.82,0.06]
[1754924507174,39.78234617,178.83,178.82,0.06]
[1754924507376,15.10621557,178.82,178.8,0.06]
[1754924507589,59.14282945,178.81,178.8,0.06]
[1754924507789,15.10621557,178.8,178.78,0.06]
[1754924507993,68.6809531,178.79,178.78,0.06]
[1754924508289,59.81282945,178.79,178.78,0.06]
[1754924508492,59.14282945,178.79,178.78,0.06]
[1754924508874,49.62976785,178.79,178.78,0.06]
[1754924509075,45.45315397,178.79,178.78,0.06]
[1754924509266,49.63176825,178.79,178.78,0.06]
[1754924509669,49.6316142,178.79,178.78,0.06]
[1754924510175,4.17846023,178.79,178.78,9.59812365]
[1754924510376,4.17846023,178.8,178.78,9.59812365]
[1754924510590,4.17846023,178.79,178.78,9.59812365]
[1754924510894,45.4525987,178.81,178.78,9.59812365]
[1754924511094,4.17871054,178.8,178.78,9.59812365]
[1754924511671,4.17871054,178.8,178.78,0.06]
[1754924512280,9.77166199,178.8,178.78,0.06]
[1754924512474,4.17871054,178.79,178.78,0.06]
[1754924512998,4.17871054,178.79,178.78,9.59812365]
[1754924513891,4.17871054,178.79,178.78,0.06]
[1754924514579,59.83998816,178.79,178.78,0.06]
[1754924514808,74.94620373,178.79,178.78,0.06]
[1754924514995,24.64433922,178.77,178.76,0.06]
[1754924515301,59.14492611,178.77,178.76,0.06]
[1754924515503,68.68304976,178.77,178.76,0.06]
[1754924515801,59.14492611,178.77,178.76,0.06]
[1754924516173,64.73870582,178.77,178.76,0.06]
[1754924516370,65.40870582,178.77,178.76,0.06]
[1754924516569,9.77249025,178.77,178.76,0.06]
[1754924516985,10.44249025,178.77,178.76,0.06]
[1754924517497,16.42117396,178.77,178.76,0.06]
[1754924517707,31.52738953,178.77,178.76,0.06]
[1754924518079,36.23200436,178.77,178.76,0.06]
[1754924519498,31.52738953,178.77,178.76,0.06]
[1754924519677,36.23200436,178.77,178.76,0.06]
[1754924520080,71.38738953,178.77,178.76,0.06]
[1754924520281,64.73870582,178.77,178.76,0.06]
[1754924520898,74.99556014,178.77,178.76,0.06]
[1754924521315,79.70017497,178.77,178.76,0.06]
[1754924521623,79.69204404,178.77,178.76,0.06]
[1754924522189,70.12518972,178.77,178.76,0.06]
[1754924522483,79.69204404,178.77,178.76,0.06]
[1754924522696,75.5133335,178.77,178.76,0.06]
[1754924522901,79.68660492,178.77,178.76,0.06]
[1754924523411,74.99012102,178.77,178.76,0.06]
[1754924523699,77.90418409,178.77,178.76,0.06]
[1754924524328,82.60066799,178.77,178.76,0.06]
[1754924524529,82.60066799,178.77,178.75,0.06]
[1754924524530,15.10621557,178.76,178.75,0.06]
[1754924524833,24.66192513,178.76,178.75,0.06]
[1754924524986,34.22877945,178.76,178.75,0.06]
[1754924525698,29.53634131,178.76,178.75,0.06]
[1754924526238,35.13043394,178.76,178.75,0.06]
[1754924526414,65.13043394,178.76,178.75,0.06]
[1754924526617,55.56357962,178.76,178.75,0.06]
[1754924526834,65.13043394,178.76,178.75,0.06]
[1754924527333,35.13043394,178.76,178.75,0.06]
[1754924529948,39.82287208,178.76,178.75,0.06]
[1754924531323,35.13043394,178.76,178.75,1e-08]
[1754924531642,37.20840017,178.76,178.75,1e-08]
[1754924532249,35.12465429,178.76,178.75,1e-08]
[1754924532945,79.67247759,178.76,178.75,1e-08]
[1754924533149,74.98465429,178.76,178.75,1e-08]
[1754924533331,41.10621557,178.73,178.72,0.06]
[1754924533527,15.10621557,178.72,178.7,0.06]
[1754924533748,68.70056166,178.71,178.7,0.06]
[1754924534047,69.39056166,178.71,178.7,0.06]
[1754924534426,69.38898223,178.71,178.7,0.06]
[1754924535352,74.98463999,178.71,178.7,0.06]
[1754924535552,65.41778567,178.71,178.7,0.06]
[1754924535747,74.98463999,178.71,178.7,0.06]
[1754924535951,15.10621557,178.7,178.64,0.1]
[1754924536133,15.10621557,178.66,178.64,0.1]
[1754924536331,54.96621557,178.65,178.64,0.1]
[1754924537373,60.56375265,178.65,178.64,0.1]
[1754924538228,54.96621557,178.65,178.64,0.1]
[1754924538846,39.86,178.65,178.64,0.1]
[1754924539031,4.68638715,178.71,178.64,0.1]
[1754924539032,15.10621557,178.71,178.64,9.73685432]
[1754924539230,5.59659726,178.68,178.64,9.73685432]
[1754924539446,39.86,178.67,178.64,9.66685432]
[1754924540234,39.86,178.67,178.64,0.1]
[1754924540444,39.86,178.67,178.64,6.08539894]
[1754924540656,39.86,178.67,178.65,5.98539894]
[1754924540847,39.86,178.67,178.64,6.15539894]
[1754924541048,39.86,178.67,178.64,6.08539894]
[1754924541254,140.0,178.65,178.64,6.08539894]
[1754924542243,140.0,178.65,178.64,11.68324936]
[1754924542458,140.0,178.65,178.64,11.75324936]
[1754924545774,6.3147793,178.74,178.67,26.0]
[1754924545775,0.72,178.74,178.67,26.0]
[1754924545942,39.86,178.73,178.72,5.98539894]
[1754924546150,40.55,178.73,178.7,5.98539894]
[1754924546475,0.69,178.72,178.7,5.98539894]
[1754924546670,39.86,178.73,178.7,5.98539894]
[1754924546968,0.69,178.71,178.7,5.98539894]
[1754924547266,40.55,178.73,178.7,5.98539894]
[1754924547471,40.55,178.73,178.71,5.98539894]
[1754924547672,0.69,178.72,178.7,5.98539894]
[1754924548266,15.10621557,178.7,178.65,5.98539894]
[1754924548467,15.10621557,178.7,178.64,0.1]
[1754924548468,46.53539894,178.69,178.64,6.08539894]
[1754924548668,0.69,178.68,178.64,6.08539894]
[1754924548878,0.69,178.67,178.64,0.1]
[1754924549070,40.55,178.67,178.64,0.1]
[1754924549690,140.0,178.65,178.64,0.1]
[1754924550654,140.69,178.65,178.64,0.1]
[1754924551988,140.0,178.65,178.64,0.1]
[1754924552680,140.0,178.65,178.64,11.75324936]
[1754924553375,0.69,178.72,178.64,25.74787542]
[1754924553575,40.55,178.72,178.65,0.07]
[1754924553780,40.55,178.72,178.71,5.98539894]
[1754924553959,40.58,178.72,178.71,5.98539894]
[1754924554155,40.58,178.72,178.65,0.07]
[1754924554680,40.58,178.72,178.7,5.98539894]
[1754924555880,40.58,178.72,178.71,5.98539894]
[1754924556381,0.72,178.72,178.71,5.98539894]
[1754924557151,0.72,178.72,178.68,5.59642874]
[1754924557455,0.72,178.72,178.68,5.98539894]
[1754924557456,0.69,178.71,178.68,5.98539894]
[1754924557672,0.69,178.7,178.68,5.98539894]
[1754924557875,0.72,178.72,178.69,5.98539894]
[1754924558074,0.69,178.71,178.69,5.98539894]
[1754924558962,40.53,178.71,178.68,5.98539894]
[1754924559165,0.69,178.7,178.68,5.98539894]
[1754924559367,0.69,178.69,178.64,31.69779604]
[1754924559582,51.42131517,178.71,178.66,5.98539894]
[1754924559583,0.69,178.68,178.66,5.98539894]